[Event "*** Titled Tuesday Blitz"]
[Site "Chess.com"]
[Date "2021.04.27"]
[Round "5"]
[White "jerry_77"]
[Black "Aradhya2000"]
[Result "1-0"]
[WhiteElo "2479"]
[BlackElo "2614"]
[TimeControl "180+1"]
[EndTime "10:57:55 PDT"]
[Termination "jerry_77 won by checkmate"]

1. e4 {[%clk 0:03:00.9]} 1... e5 {[%clk 0:01:58.5]} 2. Nf3 {[%clk 0:03:00]} 2...
Nc6 {[%clk 0:01:57.6]} 3. Bb5 {[%clk 0:03:00.5]} 3... a6 {[%clk 0:01:56.7]} 4.
Ba4 {[%clk 0:03:00.7]} 4... Nf6 {[%clk 0:01:55.3]} 5. O-O {[%clk 0:03:00.3]}
5... b5 {[%clk 0:01:53.5]} 6. Bb3 {[%clk 0:03:00.1]} 6... Bc5 {[%clk 0:01:53.8]}
7. Re1 {[%clk 0:03:00]} 7... d6 {[%clk 0:01:52.6]} 8. c3 {[%clk 0:03:00.1]} 8...
O-O {[%clk 0:01:52.6]} 9. d4 {[%clk 0:03:00]} 9... Bb6 {[%clk 0:01:52.8]} 10.
Be3 {[%clk 0:02:59.9]} 10... Bg4 {[%clk 0:01:52.5]} 11. Bc2 {[%clk 0:02:16.7]}
11... Re8 {[%clk 0:01:46.6]} 12. d5 {[%clk 0:02:13.7]} 12... Bxe3 {[%clk
0:01:44.5]} 13. Rxe3 {[%clk 0:02:14.6]} 13... Ne7 {[%clk 0:01:43.6]} 14. Nbd2
{[%clk 0:02:14.1]} 14... Ng6 {[%clk 0:01:43.1]} 15. a4 {[%clk 0:02:14.1]} 15...
h6 {[%clk 0:01:31.9]} 16. Qe2 {[%clk 0:02:11.6]} 16... Bd7 {[%clk 0:01:29.9]}
17. Qf1 {[%clk 0:02:03.1]} 17... c6 {[%clk 0:01:27.9]} 18. dxc6 {[%clk
0:01:55.6]} 18... Bxc6 {[%clk 0:01:27.6]} 19. Ree1 {[%clk 0:01:40]} 19... Qb6
{[%clk 0:01:24.4]} 20. a5 {[%clk 0:01:39.1]} 20... Qb7 {[%clk 0:01:23.9]} 21.
Rad1 {[%clk 0:01:37.7]} 21... Rad8 {[%clk 0:01:22.5]} 22. c4 {[%clk 0:01:22.8]}
22... Nf4 {[%clk 0:01:13.3]} 23. g3 {[%clk 0:01:17.9]} 23... Ne6 {[%clk
0:01:12.5]} 24. b4 {[%clk 0:01:15]} 24... bxc4 {[%clk 0:01:03.1]} 25. Qxc4
{[%clk 0:01:15.9]} 25... d5 {[%clk 0:01:03.2]} 26. exd5 {[%clk 0:01:10.5]} 26...
Bxd5 {[%clk 0:00:59.2]} 27. Qe2 {[%clk 0:01:10.5]} 27... e4 {[%clk 0:00:20.2]}
28. Nxe4 {[%clk 0:01:10.2]} 28... Bxe4 {[%clk 0:00:19.7]} 29. Bxe4 {[%clk
0:01:04.4]} 29... Qxe4 {[%clk 0:00:16.6]} 30. Rxd8 {[%clk 0:01:02]} 30... Nxd8
{[%clk 0:00:15.5]} 31. Qxa6 {[%clk 0:00:59.3]} 31... Qxf3 {[%clk 0:00:15]} 32.
Rxe8+ {[%clk 0:00:59.1]} 32... Nxe8 {[%clk 0:00:15.9]} 33. Qc8 {[%clk
0:00:57.8]} 33... Qd1+ {[%clk 0:00:15.6]} 34. Kg2 {[%clk 0:00:57.6]} 34... Qd5+
{[%clk 0:00:16.2]} 35. Kg1 {[%clk 0:00:56.8]} 35... Kf8 {[%clk 0:00:14.5]} 36.
a6 {[%clk 0:00:56.3]} 36... Nc6 {[%clk 0:00:14.7]} 37. h4 {[%clk 0:00:42.2]}
37... Ke7 {[%clk 0:00:14.3]} 38. Qb7+ {[%clk 0:00:41.7]} 38... Qd7 {[%clk
0:00:14.1]} 39. Qb6 {[%clk 0:00:39.8]} 39... Qc7 {[%clk 0:00:13.5]} 40. Qc5+
{[%clk 0:00:38.3]} 40... Qd6 {[%clk 0:00:13.8]} 41. Qe3+ {[%clk 0:00:35.8]}
41... Kd7 {[%clk 0:00:13.9]} 42. a7 {[%clk 0:00:35.4]} 42... Nxa7 {[%clk
0:00:08.6]} 43. Qxa7+ {[%clk 0:00:36.3]} 43... Nc7 {[%clk 0:00:09.1]} 44. Qa2
{[%clk 0:00:32.5]} 44... Qd5 {[%clk 0:00:08.9]} 45. Qb2 {[%clk 0:00:30.8]} 45...
f6 {[%clk 0:00:08.6]} 46. Qc2 {[%clk 0:00:29]} 46... Nb5 {[%clk 0:00:08.5]} 47.
Qg6 {[%clk 0:00:28.7]} 47... Qg8 {[%clk 0:00:07.3]} 48. Qf5+ {[%clk 0:00:28]}
48... Kd6 {[%clk 0:00:07.7]} 49. Qxb5 {[%clk 0:00:26.9]} 49... Qd5 {[%clk
0:00:06.9]} 50. Qb6+ {[%clk 0:00:26.4]} 50... Ke5 {[%clk 0:00:06.7]} 51. Qc7+
{[%clk 0:00:25]} 51... Kf5 {[%clk 0:00:06.8]} 52. Qxg7 {[%clk 0:00:24.4]} 52...
Qd1+ {[%clk 0:00:07]} 53. Kh2 {[%clk 0:00:23.3]} 53... Qf3 {[%clk 0:00:06.1]}
54. Qa7 {[%clk 0:00:22.3]} 54... Qd5 {[%clk 0:00:04.8]} 55. Qe3 {[%clk
0:00:20.3]} 55... Qc4 {[%clk 0:00:03.5]} 56. Qc5+ {[%clk 0:00:19.7]} 56... Qxc5
{[%clk 0:00:03.6]} 57. bxc5 {[%clk 0:00:20.6]} 57... Ke5 {[%clk 0:00:04.2]} 58.
Kh3 {[%clk 0:00:21.5]} 58... h5 {[%clk 0:00:01.8]} 59. g4 {[%clk 0:00:21.8]}
59... hxg4+ {[%clk 0:00:01.5]} 60. Kxg4 {[%clk 0:00:22.7]} 60... Kd5 {[%clk
0:00:02]} 61. Kf5 {[%clk 0:00:23.6]} 61... Kxc5 {[%clk 0:00:02.9]} 62. Kxf6
{[%clk 0:00:24.3]} 62... Kd4 {[%clk 0:00:03.6]} 63. h5 {[%clk 0:00:25.2]} 63...
Ke4 {[%clk 0:00:04.1]} 64. h6 {[%clk 0:00:26.1]} 64... Kf3 {[%clk 0:00:04.9]}
65. h7 {[%clk 0:00:27]} 65... Kxf2 {[%clk 0:00:05.7]} 66. h8=Q {[%clk
0:00:27.9]} 66... Kg3 {[%clk 0:00:06.4]} 67. Qb8+ {[%clk 0:00:27.7]} 67... Kf2
{[%clk 0:00:07.3]} 68. Qb4 {[%clk 0:00:28.3]} 68... Ke2 {[%clk 0:00:08.2]} 69.
Kf5 {[%clk 0:00:29.1]} 69... Kd3 {[%clk 0:00:08.9]} 70. Kf4 {[%clk 0:00:29]}
70... Ke2 {[%clk 0:00:09.2]} 71. Qa3 {[%clk 0:00:29.3]} 71... Kd2 {[%clk
0:00:09.4]} 72. Ke4 {[%clk 0:00:29.2]} 72... Kc2 {[%clk 0:00:09.7]} 73. Kd4
{[%clk 0:00:29.5]} 73... Kd2 {[%clk 0:00:09.9]} 74. Qa2+ {[%clk 0:00:29.6]}
74... Kd1 {[%clk 0:00:09.1]} 75. Kd3 {[%clk 0:00:29.5]} 75... Ke1 {[%clk
0:00:09.7]} 76. Ke3 {[%clk 0:00:29.7]} 76... Kd1 {[%clk 0:00:09.6]} 77. Qh2
{[%clk 0:00:28.6]} 77... Kc1 {[%clk 0:00:09.7]} 78. Kd3 {[%clk 0:00:28.8]} 78...
Kb1 {[%clk 0:00:09.9]} 79. Kc3 {[%clk 0:00:29.1]} 79... Kc1 {[%clk 0:00:10.1]}
80. Qg2 {[%clk 0:00:29.4]} 80... Kd1 {[%clk 0:00:10.2]} 81. Qf2 {[%clk
0:00:29.3]} 81... Kc1 {[%clk 0:00:10.2]} 82. Qe2 {[%clk 0:00:29.7]} 82... Kb1
{[%clk 0:00:10.6]} 83. Kb3 {[%clk 0:00:29.1]} 83... Ka1 {[%clk 0:00:10.7]} 84.
Qd2 {[%clk 0:00:28.5]} 84... Kb1 {[%clk 0:00:10.9]} 85. Qd1# {[%clk 0:00:28.6]}
1-0

[Event "*** Titled Tuesday Blitz"]
[Site "Chess.com"]
[Date "2021.04.27"]
[Round "5"]
[White "Stormeman100100"]
[Black "GregShahade"]
[Result "1-0"]
[WhiteElo "2498"]
[BlackElo "2653"]
[TimeControl "180+1"]
[EndTime "10:58:08 PDT"]
[Termination "Stormeman100100 won by checkmate"]

1. e4 {[%clk 0:03:00.9]} 1... e5 {[%clk 0:03:00]} 2. Nf3 {[%clk 0:02:59.8]} 2...
Nc6 {[%clk 0:03:00.4]} 3. Bc4 {[%clk 0:02:59.1]} 3... Nf6 {[%clk 0:02:59.4]} 4.
d3 {[%clk 0:02:55.6]} 4... Bc5 {[%clk 0:02:58.8]} 5. O-O {[%clk 0:02:53.7]} 5...
a6 {[%clk 0:02:56.7]} 6. c3 {[%clk 0:02:49.9]} 6... Ba7 {[%clk 0:02:56]} 7. Nbd2
{[%clk 0:02:48.9]} 7... d6 {[%clk 0:02:55.9]} 8. a4 {[%clk 0:02:46.8]} 8... O-O
{[%clk 0:02:55.8]} 9. h3 {[%clk 0:02:44.9]} 9... h6 {[%clk 0:02:55.7]} 10. Re1
{[%clk 0:02:42.8]} 10... Re8 {[%clk 0:02:56.2]} 11. Nf1 {[%clk 0:02:41.8]} 11...
Be6 {[%clk 0:02:56.5]} 12. Bxe6 {[%clk 0:02:40.4]} 12... Rxe6 {[%clk 0:02:57.4]}
13. b4 {[%clk 0:02:34.7]} 13... Qd7 {[%clk 0:02:37.2]} 14. Be3 {[%clk
0:02:27.8]} 14... Bxe3 {[%clk 0:02:33.4]} 15. Nxe3 {[%clk 0:02:28.7]} 15... Ne7
{[%clk 0:02:24.1]} 16. Qb3 {[%clk 0:02:13.7]} 16... d5 {[%clk 0:02:13.6]} 17.
exd5 {[%clk 0:02:11.1]} 17... Nfxd5 {[%clk 0:02:08.2]} 18. Nxd5 {[%clk
0:02:09.6]} 18... Qxd5 {[%clk 0:02:04.5]} 19. Qxd5 {[%clk 0:01:51.5]} 19... Nxd5
{[%clk 0:02:04.2]} 20. Rac1 {[%clk 0:01:40.6]} 20... Rae8 {[%clk 0:01:44.7]} 21.
b5 {[%clk 0:01:38.2]} 21... axb5 {[%clk 0:01:37.6]} 22. axb5 {[%clk 0:01:39.1]}
22... Nf4 {[%clk 0:01:37.8]} 23. Re3 {[%clk 0:01:38.9]} 23... f6 {[%clk
0:01:35.6]} 24. Kh2 {[%clk 0:01:34.1]} 24... Rd8 {[%clk 0:01:34.9]} 25. d4
{[%clk 0:01:06]} 25... e4 {[%clk 0:01:22]} 26. Nd2 {[%clk 0:01:05.3]} 26... f5
{[%clk 0:01:22]} 27. f3 {[%clk 0:01:03.1]} 27... Nd5 {[%clk 0:01:14.4]} 28. Ree1
{[%clk 0:01:02.7]} 28... e3 {[%clk 0:01:12.8]} 29. Nc4 {[%clk 0:01:02.9]} 29...
f4 {[%clk 0:01:10.7]} 30. Ne5 {[%clk 0:01:00.7]} 30... Ra8 {[%clk 0:01:07.8]}
31. c4 {[%clk 0:00:59.4]} 31... Ne7 {[%clk 0:01:01.8]} 32. Ra1 {[%clk
0:00:58.6]} 32... Rxa1 {[%clk 0:00:58.2]} 33. Rxa1 {[%clk 0:00:59.5]} 33... Nf5
{[%clk 0:00:58.5]} 34. Nd3 {[%clk 0:00:58.5]} 34... g5 {[%clk 0:00:53.3]} 35. d5
{[%clk 0:00:56.5]} 35... Re8 {[%clk 0:00:52.8]} 36. Ra7 {[%clk 0:00:48.5]} 36...
e2 {[%clk 0:00:49]} 37. Ne1 {[%clk 0:00:48.6]} 37... Rb8 {[%clk 0:00:26.7]} 38.
Kg1 {[%clk 0:00:47.7]} 38... Nd6 {[%clk 0:00:27]} 39. Ra4 {[%clk 0:00:40.1]}
39... b6 {[%clk 0:00:24.7]} 40. Kf2 {[%clk 0:00:39.9]} 40... Re8 {[%clk
0:00:25]} 41. Ra7 {[%clk 0:00:32.9]} 41... Nxc4 {[%clk 0:00:25.2]} 42. Rxc7
{[%clk 0:00:31.7]} 42... Ne3 {[%clk 0:00:25.7]} 43. d6 {[%clk 0:00:29.4]} 43...
Nd1+ {[%clk 0:00:26]} 44. Kg1 {[%clk 0:00:29.4]} 44... Rd8 {[%clk 0:00:26]} 45.
Re7 {[%clk 0:00:14.1]} 45... Rxd6 {[%clk 0:00:24]} 46. Rxe2 {[%clk 0:00:14.2]}
46... Nc3 {[%clk 0:00:24.6]} 47. Re5 {[%clk 0:00:11.9]} 47... Rd1 {[%clk
0:00:22.3]} 48. h4 {[%clk 0:00:11.2]} 48... gxh4 {[%clk 0:00:21.3]} 49. Kh2
{[%clk 0:00:09.6]} 49... Rb1 {[%clk 0:00:19.8]} 50. Nd3 {[%clk 0:00:07.3]} 50...
Rxb5 {[%clk 0:00:16.5]} 51. Re6 {[%clk 0:00:06.8]} 51... Rb2 {[%clk 0:00:15]}
52. Nxf4 {[%clk 0:00:06.2]} 52... b5 {[%clk 0:00:12]} 53. Rxh6 {[%clk
0:00:05.9]} 53... b4 {[%clk 0:00:10.8]} 54. Rb6 {[%clk 0:00:03.5]} 54... Na4
{[%clk 0:00:09.8]} 55. Rb8+ {[%clk 0:00:03.1]} 55... Kf7 {[%clk 0:00:10]} 56.
Nd3 {[%clk 0:00:03.6]} 56... Rd2 {[%clk 0:00:08.5]} 57. Nxb4 {[%clk 0:00:04.1]}
57... Nc3 {[%clk 0:00:08.9]} 58. Nc6 {[%clk 0:00:03.5]} 58... Ne2 {[%clk
0:00:08.3]} 59. Ne5+ {[%clk 0:00:03.6]} 59... Ke6 {[%clk 0:00:07.6]} 60. Ng6
{[%clk 0:00:03.4]} 60... h3 {[%clk 0:00:06.5]} 61. Kxh3 {[%clk 0:00:03.3]} 61...
Nd4 {[%clk 0:00:06.6]} 62. Rb6+ {[%clk 0:00:03.1]} 62... Kf7 {[%clk 0:00:06.2]}
63. Ra6 {[%clk 0:00:03.4]} 63... Kg7 {[%clk 0:00:06.1]} 64. Nf4 {[%clk
0:00:03.5]} 64... Nf5 {[%clk 0:00:06.1]} 65. Nh5+ {[%clk 0:00:03.9]} 65... Kf7
{[%clk 0:00:04.5]} 66. g4 {[%clk 0:00:04.8]} 66... Nd4 {[%clk 0:00:04]} 67. Kg3
{[%clk 0:00:05.5]} 67... Ne2+ {[%clk 0:00:03.8]} 68. Kf2 {[%clk 0:00:05.6]}
68... Nd4+ {[%clk 0:00:04.7]} 69. Ke3 {[%clk 0:00:06.2]} 69... Rd1 {[%clk
0:00:05.3]} 70. Nf4 {[%clk 0:00:04.1]} 70... Nc2+ {[%clk 0:00:05.2]} 71. Ke2
{[%clk 0:00:04.2]} 71... Rd8 {[%clk 0:00:03.2]} 72. g5 {[%clk 0:00:04.6]} 72...
Nd4+ {[%clk 0:00:03.5]} 73. Kf2 {[%clk 0:00:04.7]} 73... Kg8 {[%clk 0:00:02.8]}
74. Ra7 {[%clk 0:00:04.8]} 74... Nf5 {[%clk 0:00:02.8]} 75. Nh5 {[%clk
0:00:04.1]} 75... Kf8 {[%clk 0:00:01.9]} 76. Nf6 {[%clk 0:00:04.3]} 76... Nd6
{[%clk 0:00:01.6]} 77. f4 {[%clk 0:00:04.4]} 77... Nf7 {[%clk 0:00:01.1]} 78.
Kf3 {[%clk 0:00:04.7]} 78... Nh8 {[%clk 0:00:01.2]} 79. Kg4 {[%clk 0:00:05]}
79... Ng6 {[%clk 0:00:01.7]} 80. f5 {[%clk 0:00:05.4]} 80... Ne5+ {[%clk
0:00:02]} 81. Kh5 {[%clk 0:00:05.6]} 81... Nf7 {[%clk 0:00:02.8]} 82. g6 {[%clk
0:00:05.5]} 82... Rd6 {[%clk 0:00:03.2]} 83. Rxf7# {[%clk 0:00:04.8]} 1-0

[Event "*** Titled Tuesday Blitz"]
[Site "Chess.com"]
[Date "2021.04.27"]
[Round "5"]
[White "anon6121824"]
[Black "Sanan_Sjugirov"]
[Result "1-0"]
[WhiteElo "2820"]
[BlackElo "2962"]
[TimeControl "180+1"]
[EndTime "10:58:12 PDT"]
[Termination "anon6121824 won on time"]

1. e4 {[%clk 0:03:00.9]} 1... c6 {[%clk 0:02:57.9]} 2. d4 {[%clk 0:03:00.3]}
2... d5 {[%clk 0:02:57.9]} 3. Nc3 {[%clk 0:03:00.8]} 3... dxe4 {[%clk
0:02:57.5]} 4. Nxe4 {[%clk 0:03:01.5]} 4... Nf6 {[%clk 0:02:58.1]} 5. Nxf6+
{[%clk 0:03:02]} 5... exf6 {[%clk 0:02:59]} 6. c3 {[%clk 0:03:02.7]} 6... Bd6
{[%clk 0:02:58.8]} 7. Bd3 {[%clk 0:03:02]} 7... O-O {[%clk 0:02:58.7]} 8. Qc2
{[%clk 0:03:02.5]} 8... Re8+ {[%clk 0:02:58.8]} 9. Ne2 {[%clk 0:03:03]} 9... h5
{[%clk 0:02:51.3]} 10. O-O {[%clk 0:03:02.6]} 10... h4 {[%clk 0:02:47.2]} 11.
Bd2 {[%clk 0:03:00.4]} 11... Nd7 {[%clk 0:02:42.2]} 12. h3 {[%clk 0:02:58.4]}
12... Nf8 {[%clk 0:02:42.1]} 13. Rfe1 {[%clk 0:02:58.2]} 13... Bc7 {[%clk
0:02:40.3]} 14. Rad1 {[%clk 0:01:50.1]} 14... a5 {[%clk 0:02:27.6]} 15. Qc1
{[%clk 0:01:45.2]} 15... Be6 {[%clk 0:02:25.3]} 16. c4 {[%clk 0:01:36.6]} 16...
Ng6 {[%clk 0:02:07.5]} 17. Bxg6 {[%clk 0:01:26.5]} 17... fxg6 {[%clk 0:02:08.4]}
18. Bf4 {[%clk 0:01:27]} 18... Bf7 {[%clk 0:02:02.8]} 19. d5 {[%clk 0:01:15.3]}
19... cxd5 {[%clk 0:01:56.6]} 20. cxd5 {[%clk 0:01:16.2]} 20... Rc8 {[%clk
0:01:50]} 21. Bxc7 {[%clk 0:01:01.9]} 21... Rxc7 {[%clk 0:01:49.8]} 22. Qd2
{[%clk 0:00:57.4]} 22... Rd7 {[%clk 0:01:29.1]} 23. Nc3 {[%clk 0:00:51.9]} 23...
Rxe1+ {[%clk 0:01:28]} 24. Qxe1 {[%clk 0:00:52.8]} 24... g5 {[%clk 0:00:56.5]}
25. Qe4 {[%clk 0:00:49.6]} 25... Qb6 {[%clk 0:00:49.7]} 26. Rd2 {[%clk
0:00:46.7]} 26... Qb4 {[%clk 0:00:47.1]} 27. Qe3 {[%clk 0:00:39.6]} 27... Rd8
{[%clk 0:00:43.7]} 28. a3 {[%clk 0:00:36.9]} 28... Qd6 {[%clk 0:00:37.1]} 29.
Qa7 {[%clk 0:00:26.9]} 29... Re8 {[%clk 0:00:34]} 30. Rd1 {[%clk 0:00:26.8]}
30... b6 {[%clk 0:00:31]} 31. Qb7 {[%clk 0:00:22.1]} 31... Rd8 {[%clk
0:00:22.9]} 32. Re1 {[%clk 0:00:17.5]} 32... Rd7 {[%clk 0:00:17.3]} 33. Qc8+
{[%clk 0:00:16.6]} 33... Kh7 {[%clk 0:00:17.9]} 34. Rd1 {[%clk 0:00:13.4]} 34...
Rd8 {[%clk 0:00:07]} 35. Qc6 {[%clk 0:00:10.4]} 35... Be8 {[%clk 0:00:01.6]} 36.
Qxd6 {[%clk 0:00:09.3]} 36... Rxd6 {[%clk 0:00:02.5]} 37. Ne4 {[%clk 0:00:09.6]}
37... Rd8 {[%clk 0:00:02.8]} 38. g4 {[%clk 0:00:07.8]} 38... hxg3 {[%clk
0:00:02.5]} 39. fxg3 {[%clk 0:00:08.2]} 39... Kg6 {[%clk 0:00:03.1]} 40. g4
{[%clk 0:00:08.6]} 40... Bd7 {[%clk 0:00:03.2]} 41. Kf2 {[%clk 0:00:08.6]} 41...
f5 {[%clk 0:00:03.6]} 42. gxf5+ {[%clk 0:00:08.8]} 42... Bxf5 {[%clk 0:00:04.5]}
43. Nc3 {[%clk 0:00:05.7]} 43... Bxh3 {[%clk 0:00:04.7]} 44. d6 {[%clk
0:00:06.3]} 44... Bd7 {[%clk 0:00:04.4]} 45. Nd5 {[%clk 0:00:06.3]} 45... Rf8+
{[%clk 0:00:03.1]} 46. Ke3 {[%clk 0:00:06.3]} 46... Re8+ {[%clk 0:00:03.1]} 47.
Kd4 {[%clk 0:00:06.8]} 47... Re6 {[%clk 0:00:02.9]} 48. Rg1 {[%clk 0:00:02.7]}
48... Rxd6 {[%clk 0:00:02.2]} 49. Ke4 {[%clk 0:00:03.2]} 49... Re6+ {[%clk
0:00:02.7]} 50. Kd4 {[%clk 0:00:03.3]} 50... Rd6 {[%clk 0:00:03.1]} 51. Ke5
{[%clk 0:00:03.8]} 51... Re6+ {[%clk 0:00:03.6]} 52. Kd4 {[%clk 0:00:04]} 52...
Bc6 {[%clk 0:00:03.7]} 53. Nf4+ {[%clk 0:00:04.4]} 53... Kf6 {[%clk 0:00:04.2]}
54. Nxe6 {[%clk 0:00:05.3]} 54... Kxe6 {[%clk 0:00:05.1]} 55. Rxg5 {[%clk
0:00:05.9]} 55... Kf6 {[%clk 0:00:06]} 56. Rg3 {[%clk 0:00:05.9]} 56... g5
{[%clk 0:00:06.5]} 57. Rc3 {[%clk 0:00:05.9]} 57... Bd7 {[%clk 0:00:05.3]} 58.
Rc7 {[%clk 0:00:05.2]} 58... Be6 {[%clk 0:00:03.8]} 59. Rc6 {[%clk 0:00:05.3]}
59... g4 {[%clk 0:00:04.7]} 60. Ke3 {[%clk 0:00:05.5]} 60... Ke5 {[%clk
0:00:04.8]} 61. Rxb6 {[%clk 0:00:05.7]} 61... a4 {[%clk 0:00:05.4]} 62. Rb5+
{[%clk 0:00:06]} 62... Kd6 {[%clk 0:00:05.3]} 63. Rb4 {[%clk 0:00:06.9]} 63...
Bd7 {[%clk 0:00:05.6]} 64. Kf4 {[%clk 0:00:07.4]} 64... Kc7 {[%clk 0:00:05.6]}
65. b3 {[%clk 0:00:07.6]} 65... axb3 {[%clk 0:00:05.8]} 66. Rxb3 {[%clk
0:00:08.5]} 66... Kd6 {[%clk 0:00:06.1]} 67. Ke4 {[%clk 0:00:08.2]} 67... Kc7
{[%clk 0:00:06.2]} 68. Kd4 {[%clk 0:00:08.7]} 68... Bc6 {[%clk 0:00:06.2]} 69.
Kc5 {[%clk 0:00:08.8]} 69... Bf3 {[%clk 0:00:06.3]} 70. Re3 {[%clk 0:00:08]}
70... Bd1 {[%clk 0:00:06.1]} 71. Re7+ {[%clk 0:00:06.4]} 71... Kb8 {[%clk
0:00:05.6]} 72. Rg7 {[%clk 0:00:06.9]} 72... Kc8 {[%clk 0:00:05]} 73. Kb4 {[%clk
0:00:06]} 73... Bf3 {[%clk 0:00:04.6]} 74. a4 {[%clk 0:00:05.6]} 74... Be2
{[%clk 0:00:04.9]} 75. a5 {[%clk 0:00:05.7]} 75... Kb8 {[%clk 0:00:05.2]} 76.
Kc5 {[%clk 0:00:06]} 76... Kc8 {[%clk 0:00:02.1]} 77. Kb6 {[%clk 0:00:06.2]} 1-0

[Event "*** Titled Tuesday Blitz"]
[Site "Chess.com"]
[Date "2021.04.27"]
[Round "5"]
[White "MIJuanReyesRosa"]
[Black "Loy_Konstantin"]
[Result "1-0"]
[WhiteElo "2050"]
[BlackElo "2373"]
[TimeControl "180+1"]
[EndTime "10:58:14 PDT"]
[Termination "MIJuanReyesRosa won on time"]

1. e4 {[%clk 0:02:57.2]} 1... c5 {[%clk 0:02:58.8]} 2. Ne2 {[%clk 0:02:54.9]}
2... d6 {[%clk 0:02:56.2]} 3. c4 {[%clk 0:02:43.7]} 3... Nc6 {[%clk 0:02:54.9]}
4. d4 {[%clk 0:02:42.4]} 4... cxd4 {[%clk 0:02:51.8]} 5. Nxd4 {[%clk 0:02:41.7]}
5... Nxd4 {[%clk 0:02:52]} 6. Qxd4 {[%clk 0:02:41.3]} 6... Nf6 {[%clk
0:02:52.4]} 7. Nc3 {[%clk 0:02:41.3]} 7... g6 {[%clk 0:02:52]} 8. Be2 {[%clk
0:02:41]} 8... Bg7 {[%clk 0:02:51.8]} 9. O-O {[%clk 0:02:35.9]} 9... O-O {[%clk
0:02:52]} 10. Qe3 {[%clk 0:02:21.6]} 10... Be6 {[%clk 0:02:50.7]} 11. Nd5 {[%clk
0:01:31.5]} 11... Nxd5 {[%clk 0:02:19.5]} 12. cxd5 {[%clk 0:01:09.9]} 12... Bd7
{[%clk 0:02:18.8]} 13. Bd2 {[%clk 0:01:02.4]} 13... Qb6 {[%clk 0:02:07.8]} 14.
Rac1 {[%clk 0:01:00.3]} 14... Rfc8 {[%clk 0:01:59]} 15. b3 {[%clk 0:00:55.4]}
15... Qxe3 {[%clk 0:01:56.5]} 16. Bxe3 {[%clk 0:00:52.1]} 16... a6 {[%clk
0:01:56.6]} 17. f3 {[%clk 0:00:48.3]} 17... Bb2 {[%clk 0:01:54.1]} 18. Rc4
{[%clk 0:00:43.8]} 18... Bb5 {[%clk 0:01:46.5]} 19. Rxc8+ {[%clk 0:00:40.5]}
19... Rxc8 {[%clk 0:01:47.4]} 20. Bxb5 {[%clk 0:00:37]} 20... axb5 {[%clk
0:01:48.3]} 21. Rf2 {[%clk 0:00:34]} 21... Ba3 {[%clk 0:01:26.6]} 22. Kf1 {[%clk
0:00:31.2]} 22... Rc3 {[%clk 0:01:23.3]} 23. Ke2 {[%clk 0:00:27.2]} 23... f5
{[%clk 0:00:59.8]} 24. Bg5 {[%clk 0:00:24.4]} 24... Kf7 {[%clk 0:00:56.9]} 25.
Kd1 {[%clk 0:00:22.5]} 25... e6 {[%clk 0:00:38.3]} 26. Re2 {[%clk 0:00:19.3]}
26... fxe4 {[%clk 0:00:33.6]} 27. fxe4 {[%clk 0:00:17.7]} 27... Bc5 {[%clk
0:00:27.8]} 28. Rc2 {[%clk 0:00:16.6]} 28... Rd3+ {[%clk 0:00:22.4]} 29. Rd2
{[%clk 0:00:15.2]} 29... Rc3 {[%clk 0:00:15.6]} 30. Rc2 {[%clk 0:00:15]} 30...
Bd4 {[%clk 0:00:15.7]} 31. Rxc3 {[%clk 0:00:13.9]} 31... Bxc3 {[%clk 0:00:16.6]}
32. Kc2 {[%clk 0:00:14.3]} 32... Be5 {[%clk 0:00:16.2]} 33. h3 {[%clk
0:00:14.2]} 33... exd5 {[%clk 0:00:15.8]} 34. exd5 {[%clk 0:00:14.2]} 34... Bd4
{[%clk 0:00:14.7]} 35. Kd3 {[%clk 0:00:14.1]} 35... Bc5 {[%clk 0:00:14.9]} 36.
Bf4 {[%clk 0:00:13.7]} 36... Kf6 {[%clk 0:00:14.5]} 37. Ke4 {[%clk 0:00:13.1]}
37... h5 {[%clk 0:00:14.3]} 38. g4 {[%clk 0:00:12.5]} 38... hxg4 {[%clk
0:00:13.6]} 39. hxg4 {[%clk 0:00:12.4]} 39... Bb4 {[%clk 0:00:14]} 40. Bg3
{[%clk 0:00:11.8]} 40... Ba3 {[%clk 0:00:13.7]} 41. Bf4 {[%clk 0:00:11.8]} 41...
Bb4 {[%clk 0:00:14]} 42. Bg3 {[%clk 0:00:12]} 42... Kg5 {[%clk 0:00:14.4]} 43.
Kf3 {[%clk 0:00:11]} 43... Bc5 {[%clk 0:00:13.9]} 44. Bh2 {[%clk 0:00:10.8]}
44... Kh4 {[%clk 0:00:13.9]} 45. Bf4 {[%clk 0:00:09.6]} 45... Kh3 {[%clk
0:00:13.3]} 46. Bg3 {[%clk 0:00:09.5]} 46... Bb4 {[%clk 0:00:13]} 47. Bf4 {[%clk
0:00:09.5]} 47... Ba3 {[%clk 0:00:12.8]} 48. Bg3 {[%clk 0:00:09.4]} 48... Bc5
{[%clk 0:00:12.3]} 49. Bf4 {[%clk 0:00:09.5]} 49... Kh4 {[%clk 0:00:12.7]} 50.
Bg3+ {[%clk 0:00:09.3]} 50... Kg5 {[%clk 0:00:13]} 51. Bf4+ {[%clk 0:00:09.4]}
51... Kf6 {[%clk 0:00:13.3]} 52. Bg3 {[%clk 0:00:09.6]} 52... Ba3 {[%clk
0:00:12.1]} 53. Bf4 {[%clk 0:00:09.4]} 53... Ke7 {[%clk 0:00:11.8]} 54. Bg3
{[%clk 0:00:09.5]} 54... Kd7 {[%clk 0:00:12]} 55. Bf4 {[%clk 0:00:09.6]} 55...
Kc7 {[%clk 0:00:11.8]} 56. Ke4 {[%clk 0:00:09.9]} 56... Kb6 {[%clk 0:00:10.8]}
57. Bd2 {[%clk 0:00:09.3]} 57... Kc5 {[%clk 0:00:07.2]} 58. Kf4 {[%clk
0:00:08.1]} 58... Kxd5 {[%clk 0:00:06.7]} 59. Kg5 {[%clk 0:00:08.5]} 59... Ke4
{[%clk 0:00:06.4]} 60. Kxg6 {[%clk 0:00:08.6]} 60... d5 {[%clk 0:00:06.5]} 61.
g5 {[%clk 0:00:08.4]} 61... Kd3 {[%clk 0:00:05.6]} 62. Bf4 {[%clk 0:00:07.7]}
62... Kc2 {[%clk 0:00:04.4]} 63. Kf7 {[%clk 0:00:07.4]} 63... d4 {[%clk
0:00:04.4]} 64. g6 {[%clk 0:00:07.6]} 64... d3 {[%clk 0:00:01.8]} 65. g7 {[%clk
0:00:07.7]} 65... Bc1 {[%clk 0:00:01.7]} 66. Bxc1 {[%clk 0:00:06.8]} 66... Kxc1
{[%clk 0:00:02.6]} 67. g8=Q {[%clk 0:00:07.3]} 67... d2 {[%clk 0:00:03.2]} 68.
Qc8+ {[%clk 0:00:07]} 68... Kb2 {[%clk 0:00:03.3]} 69. Qd7 {[%clk 0:00:06]}
69... Kc2 {[%clk 0:00:03.4]} 70. Qc7+ {[%clk 0:00:05]} 70... Kb2 {[%clk
0:00:03.3]} 71. Qd6 {[%clk 0:00:04.7]} 71... Kc2 {[%clk 0:00:03.2]} 72. Qc5+
{[%clk 0:00:04.8]} 72... Kb2 {[%clk 0:00:01.9]} 73. Qd4+ {[%clk 0:00:05]} 73...
Kc2 {[%clk 0:00:02]} 74. Qe4+ {[%clk 0:00:04.2]} 74... Kb2 {[%clk 0:00:01.3]}
75. Qd3 {[%clk 0:00:03.9]} 1-0

[Event "*** Titled Tuesday Blitz"]
[Site "Chess.com"]
[Date "2021.04.27"]
[Round "6"]
[White "FMOlexandrProhorov"]
[Black "jraosam"]
[Result "1-0"]
[WhiteElo "2260"]
[BlackElo "1859"]
[TimeControl "180+1"]
[EndTime "11:02:13 PDT"]
[Termination "FMOlexandrProhorov won by resignation"]

1. e4 {[%clk 0:03:00.9]} 1... c5 {[%clk 0:02:58.2]} 2. c3 {[%clk 0:03:00.8]}
2... d5 {[%clk 0:02:57.4]} 3. exd5 {[%clk 0:03:01.1]} 3... Qxd5 {[%clk
0:02:58.3]} 4. d4 {[%clk 0:03:02]} 4... e6 {[%clk 0:02:57.8]} 5. Nf3 {[%clk
0:03:02.2]} 5... Nf6 {[%clk 0:02:57.2]} 6. Na3 {[%clk 0:03:02.5]} 6... Be7
{[%clk 0:02:53.1]} 7. Nb5 {[%clk 0:03:01]} 7... Na6 {[%clk 0:02:52.1]} 8. Be3
{[%clk 0:02:49.7]} 8... cxd4 {[%clk 0:02:50.6]} 9. Qxd4 {[%clk 0:02:36]} 9...
O-O {[%clk 0:02:49.5]} 10. Bc4 {[%clk 0:02:32.7]} 10... Qh5 {[%clk 0:02:46.9]}
11. O-O {[%clk 0:02:30.6]} 11... Rd8 {[%clk 0:02:44.7]} 12. Qe5 {[%clk
0:02:22.3]} 12... Qg6 {[%clk 0:02:32.7]} 13. h3 {[%clk 0:02:18.2]} 13... Nd5
{[%clk 0:02:29.2]} 14. Bxa7 {[%clk 0:02:11.5]} 14... Rxa7 {[%clk 0:01:53.7]} 15.
Nxa7 {[%clk 0:02:11.2]} 15... Bd6 {[%clk 0:01:53.3]} 16. Qg5 {[%clk 0:02:07.1]}
1-0